Workbook

Sheet 汇总
A1: 拆除物残值评估结果汇总表
A2: 评估基准日：2023年03月10日
A3: 评估委托人：眉山市东坡区文化馆 | E3: 金额单位：人民币元取整
A4: 序号 | B4: 项目名称 | C4: 计量单位 | D4: 数量 | E4: 变现收入A | F4: 拆除费B | G4: 清运费C | H4: 拆运费合计D=B+C | I4: 净残值收入E=A-D
A5: 1 | B5: 1层外立面拆除物 | C5: ='1层外立面'!D33 -> 项 | D5: 26 | E5: 42,261.00 | F5: 8,127.00 | G5: 2,067.00 | H5: 10,194.00 | I5: 32,067.00
A6: 2 | B6: 2层拆除物 | C6: ='2层'!D58 -> 项 | D6: 40 | E6: 68,770.00 | F6: 47,720.00 | G6: 23,111.00 | H6: 70,831.00 | I6: -2,061.00
A7: 3 | B7: 3层加建房屋拆除物 | C7: ='3层加建'!D27 -> 项 | D7: 24 | E7: 215,529.00 | F7: 77,785.00 | G7: 32,174.00 | H7: 109,959.00 | I7: 105,570.00
A8: 4 | B8: 拆除专项费用 | C8: 项 | D8: 5 | E8: 300.00 | F8: 40,500.00 | G8: 2,000.00 | H8: 42,500.00 | I8: -42,200.00
A9: 合 计 | C9: 项 | D9: 95 | E9: 326,860.00 | F9: 174,132.00 | G9: 59,352.00 | H9: 233,484.00 | I9: 93,376.00
A10: 说明：1、三层房屋，无电梯，平面面积大，房屋周边多树木阻挡，吊车无法直接吊装到运输车辆，需放至地面装车。
A11: 2、报告使用人应提示公开拍卖的竞买人进行实地查勘，按拟拆除资产现状、运输条件竞价，不受本报告描述影响。且买受人不能以拟拆除资产数量、材质、规格的不完全一致而撤销购买。
A12: 评估机构：四川兴元房地产土地资产评估有限公司 | H12: 填表日期： | I12: 2023-03-15

Sheet 1层外立面
A1: 1层外立面拆除物清单
A2: 序号 | B2: 名称 | C2: 概况 | D2: 计量单位 | E2: 数量
A3: 一 | B3: 南外立面
A4: 1 | B4: 铁花大门 | C4: 上下轨道，长6.9米，高2.3米，不锈钢 | D4: 平方米 | E4: 15.87
A5: 2 | B5: LED显示屏 | C5: 长6.9米，高0.8米 | D5: 平方米 | E5: 5.52
A6: 3 | B6: 服务中心铭牌 | C6: 长10.9米，高2.9米，不锈钢 | D6: 平方米 | E6: 31.61
A7: 4 | B7: 服务中心玻璃大门 | C7: 长6.9米，高2.3米，无感应，不锈钢包边 | D7: 平方米 | E7: 15.87
A8: 5 | B8: 便民服务玻璃门 | C8: 长3.2米、高2.2米，不锈钢梁高0.2米 | D8: 平方米 | E8: 7.68
A9: 6 | B9: 便民服务铭牌 | C9: 长3.5米，高0.6米，不锈钢 | D9: 平方米 | E9: 2.10
A10: 7 | B10: 便民服务玻璃窗 | C10: 长3.25米，高2.35米，不锈钢包边 | D10: 平方米 | E10: 7.64
A11: 8 | B11: 彩钢棚 | C11: 彩钢拉结，长14.4米，宽2.38米 | D11: 平方米 | E11: 34.27
A12: 9 | B12: 塑钢窗有螺纹钢护栏 | C12: 7个，竖φ6横φ4cm螺纹钢护栏，6cm钢管护栏 | D12: 平方米 | E12: 23.28
A13: 10 | B13: 塑钢窗不带螺纹钢 | C13: 4个，6cm钢管护栏 | D13: 平方米 | E13: 15.36
A14: 二 | B14: 西外立面
A15: 11 | B15: 塑钢窗有螺纹钢护栏 | C15: 6个,竖φ6横φ4cm螺纹钢护栏，6cm钢管护栏 | D15: 平方米 | E15: 23.02
A16: 12 | B16: 塑钢窗不带螺纹钢 | C16: 4个，6cm钢管护栏 | D16: 平方米 | E16: 13.82
A17: 13 | B17: 卷帘门 | C17: 铁皮，长3.47米，高3.55米，2扇 | D17: 平方米 | E17: 12.32
A18: 14 | B18: 雨棚 | C18: 彩钢拉结，长4.5米，宽0.6米 | D18: 平方米 | E18: 2.70
A19: 三 | B19: 北外立面
A20: 15 | B20: 塑钢窗有螺纹钢护栏 | C20: 12个,φ4螺纹钢护栏，6cm钢管护栏 | D20: 平方米 | E20: 56.35
A21: 16 | B21: 塑钢窗不带螺纹钢 | C21: 4个，6cm钢管护栏 | D21: 平方米 | E21: 21.69
A22: 17 | B22: 服务中心玻璃后门 | C22: 长6.9米，宽3.6米，不锈钢包边 | D22: 平方米 | E22: 24.84
A23: 18 | B23: 小雨棚 | C23: 长2.43米，宽0.65米 | D23: 平方米 | E23: 1.58
A24: 四 | B24: 东外立面
A25: 19 | B25: 塑钢窗有螺纹钢护栏 | C25: 2个,φ4螺纹钢护栏，6cm钢管护栏 | D25: 平方米 | E25: 7.05
A26: 20 | B26: 塑钢窗不带螺纹钢 | C26: 5个，6cm钢管护栏 | D26: 平方米 | E26: 28.97
A27: 21 | B27: 玻璃门 | C27: 不动产登记中心，长4米、高3.63米 | D27: 平方米 | E27: =4*3.63 -> 14.52
A28: 22 | B28: 卷帘门 | C28: 不动产登记中心，铁皮，门长4米、高3.63米 | D28: 平方米 | E28: =4*3.63 -> 14.52
A29: 23 | B29: LED显示屏 | C29: 不动产登记中心，长5米、高0.3米 | D29: 平方米 | E29: =5*0.3 -> 1.50
A30: 24 | B30: 雨棚 | C30: 铁架塑料棚，长5米、宽1.45米 | D30: 平方米 | E30: =5*1.45 -> 7.25
A31: 25 | B31: 警务竖牌 | C31: 高1米、宽0.5米、厚0.15米 | D31: 平方米 | E31: =1*0.5 -> 0.50
A32: 26 | B32: 防盗门 | C32: 宽1.1米，高2米，含边框 | D32: 扇 | E32: 1.00
A33: 合 计 | D33: 项 | E33: =A32 -> 26.00

Sheet 2层
A1: 2层拆除物清单
A2: 序号 | B2: 名称 | C2: 概况 | D2: 计量单位 | E2: 数量
A3: 一 | B3: 北面外墙
A4: 1 | B4: 拉结雨棚 | C4: 长8米，宽2米，彩钢 | D4: 平方米 | E4: =8*2 -> 16.00
A5: 二 | B5: 南面外侧
A6: 2 | B6: 彩钢棚 | C6: 长45.68米，宽3.7米，均高2.2米 | D6: 平方米 | E6: =45.68*3.7 -> 169.02
A7: 3 | B7: 东南角彩钢棚 | C7: 不规则多边形，均高2.2米 | D7: 平方米 | E7: =326.55-E6 -> 157.53
A8: 4 | B8: 旗杆 | C8: 高3米，不锈钢 | D8: 根 | E8: 1.00
A9: 三 | B9: 1楼南北门厅
A10: 5 | B10: 南面门厅楼梯扶手 | C10: 长34.4米，高1米，不锈钢管 | D10: 米 | E10: =34.4 -> 34.40
A11: 6 | B11: 南面门卫室玻璃顶 | C11: 长5.7米，宽2.3米 | D11: 平方米 | E11: =5.7*2.3 -> 13.11
A12: 7 | B12: 南面门卫室门窗 | C12: 宽2.3米，高2.8米，塑钢窗、防盗门 | D12: 平方米 | E12: =2.3*2.8 -> 6.44
A13: 8 | B13: 北面内玻璃门 | C13: 4.36米，高3.67米 | D13: 平方米 | E13: =4.36*3.67 -> 16.00
A14: 9 | B14: 北面门厅楼梯扶手 | C14: 长77.3米，高1米，不锈钢 | D14: 米 | E14: =77.3 -> 77.30
A15: 10 | B15: 门厅东边卷帘门 | C15: 长3.6米，宽2.93米 | D15: 平方米 | E15: =3.6*2.93 -> 10.55
A16: 11 | B16: 门厅南边门卫室单木门 | C16: 宽0.8米，高3米 | D16: 平方米 | E16: =3*0.8 -> 2.40
A17: 12 | B17: 门厅南边门卫室塑钢窗 | C17: 宽1米，高1.96米 | D17: 平方米 | E17: =1*1.96 -> 1.96
A18: 13 | B18: 门厅南边门卫室吊顶 | C18: 长7.2米，宽3.65米，石膏板 | D18: 平方米 | E18: =7.2*3.65 -> 26.28
A19: 14 | B19: 门厅西边双开实木门 | C19: 长1.7米，高2.38米 | D19: 平方米 | E19: =2.38*1.7 -> 4.05
A20: 15 | B20: 门厅西边室内吊顶 | C20: 长15米，宽3.4米 | D20: 平方米 | E20: =15*3.4 -> 51.00
A21: 四 | B21: 2楼立面窗户
A22: 16 | B22: 断桥铝玻窗不带螺纹钢（南面） | C22: 高2.7米，窗帘 | D22: 平方米 | E22: =(31+7.2+6.97)*2.7 -> 121.96
A23: 17 | B23: 断桥铝玻窗不带螺纹钢（西面） | C23: 高2.7米，窗帘 | D23: 平方米 | E23: =34*2.7 -> 91.80
A24: 18 | B24: 塑钢窗（西面厕所） | C24: 高2.7米，厕所2扇 | D24: 平方米 | E24: =4*2.7 -> 10.80
A25: 19 | B25: 断桥铝玻窗有螺纹钢护栏（东面） | C25: 高2.7米，4cm螺纹钢护栏，窗帘 | D25: 平方米 | E25: =28.7*2.7 -> 77.49
A26: 20 | B26: 断桥铝玻窗不带螺纹钢（北面） | C26: 高2.7米，部分窗帘，含厕所1扇铝合金窗 | D26: 平方米 | E26: =(53.15+3.52+7.58-3.2-3.1-2-5.3)*2.7 -> 136.76
A27: 21 | B27: 断桥铝玻窗有螺纹钢护栏（北面） | C27: 高2.7米，4cm螺纹钢护栏，窗帘，211、212房间，205北面 | D27: 平方米 | E27: =(3.2+3.1+4.33)*2.7 -> 28.70
A28: 22 | B28: 塑钢窗（东南角厨房） | C28: 高2.35米，长14.47米，3副 | D28: 平方米 | E28: =(5.32+3.93+5.22)*2.35 -> 34.00
A29: 五 | B29: 2楼大厅、隔间
A30: 23 | B30: 办公柜台 | C30: 大理石台面，木基座，长167.17米，宽0.67米，高0.75米 | D30: 平方米 | E30: =167.17*0.67 -> 112.00
A31: 24 | B31: 银行不锈钢隔栏 | C31: 长4.4米，高2米 | D31: 平方米 | E31: =4.4*2 -> 8.80
A32: 25 | B32: 立柱包裹 | C32: 0.75米*4面，高2.9米 | D32: 根 | E32: 21.00
A33: 26 | B33: 吊顶 | C33: 石膏板，含格栅荧光灯/吸顶灯，含厨房吊顶、不含厕所吊顶 | D33: 平方米 | E33: =2551.52-70 -> 2,481.52
A34: 27 | B34: 消防门 | C34: 长1.65米，高2.5米，2处，木质 | D34: 平方米 | E34: =1.65*2.5*2 -> 8.25
A35: 28 | B35: 广告牌不锈钢 | C35: 长3.7米，宽2.4米，已拆卸，闲置 | D35: 平方米 | E35: =3.7*2.4 -> 8.88
A36: 29 | B36: 室内隔断墙 | C36: 0.2米厚加气混凝土砌块，门、窗、隔断 | D36: 平方米 | E36: =SUM(E37:E45) -> 1,001.67
A37: 其中： | B37: 室内隔断墙（母婴室214） | C37: 长10.07米，高3米 | D37: 平方米 | E37: =10.07*2.9 -> 29.20
B38: 室内隔断墙（行政审批局206-215，224） | C38: 长138.91米，高2.9米，注：不含214（另列） | D38: 平方米 | E38: =138.91*2.9 -> 402.84
B39: 室内隔断墙（银行228） | C39: 长25.87米，高2.9米 | D39: 平方米 | E39: =25.87*2.9 -> 75.02
B40: 室内隔断墙（政务热线201-205） | C40: 长40.8米，高2.9米 | D40: 平方米 | E40: =40.8*2.9 -> 118.32
B41: 室内隔断墙（厨房219） | C41: 长15.83米，高2.25米 | D41: 平方米 | E41: =15.83*2.25 -> 35.62
B42: 室内隔断墙（餐厅217） | C42: 长30.77米，高2.9米 | D42: 平方米 | E42: =30.77*2.9 -> 89.23
B43: 室内隔断墙（更衣室、档案室220、222、223） | C43: 长58.1米，高2.9米 | D43: 平方米 | E43: =58.1*2.9 -> 168.49
B44: 室内隔断墙（打印室） | C44: 长21.46米，高2.9米 | D44: 平方米 | E44: =21.46*2.9 -> 62.23
B45: 室内隔断墙（216室） | C45: 长7.14米，高2.9米 | D45: 平方米 | E45: =7.14*2.9 -> 20.71
A46: 六 | B46: 厕所厨房
A47: 30 | B47: 厕所吊顶 | C47: 铝扣板，含灯/换气扇 | D47: 平方米 | E47: 70.00
A48: 31 | B48: 厕所隔断 | C48: 砖砌 | D48: 平方米 | E48: =(10.9+1.5+1.5+7.64+9)*2.9 -> 88.57
A49: 32 | B49: 厕所洗脸池 | C49: 1组3个面盆、玻璃镜贴墙 | D49: 套 | E49: 1.00
A50: 33 | B50: 厨房灶台、操作台 | C50: 砖砌，长2.05米，宽0.85米，高0.8米 | D50: 平方米 | E50: =2.05*0.85 -> 1.74
A51: 34 | B51: 厨房水龙头水管 | C51: 长4.5米 | D51: 套 | E51: 1.00
A52: 35 | B52: 厨房调料台 | C52: 4层大理石面，砖砌，长3.15米，宽0.55米，高1.05米 | D52: 平方米 | E52: =3.15*0.55 -> 1.73
A53: 36 | B53: 不锈钢单灶 | C53: 长0.6米，宽0.6米，高0.46米 | D53: 个 | E53: 1.00
A54: 37 | B54: 不锈钢消毒柜 | C54: 长1.7米，壁厚0.5米，宽1.2米 | D54: 个 | E54: 1.00
A55: 38 | B55: 厨房双灶 | C55: 长2米，宽1.15米，高0.4/0.75米，不锈钢、耐火砖 | D55: 台 | E55: 1.00
A56: 39 | B56: 厨房抽油烟机 | C56: 长3.5米，宽1.15米，高0.65米，不锈钢 | D56: 台 | E56: 1.00
A57: 40 | B57: 厨房烟囱 | C57: 高约4米，不锈钢 | D57: 根 | E57: 1.00
A58: 合 计 | D58: 项 | E58: =A57 -> 40.00

Sheet 3层加建
A1: 3层加建房屋拆除物清单
A2: 序号 | B2: 名称 | C2: 概况 | D2: 计量单位 | E2: 数量
A3: 1 | B3: 钢柱 | C3: 33根，HW200*200*8*12(Q235) | D3: 吨 | E3: 9.35
A4: 2 | B4: 钢柱外包板 | C4: 双层15mm厚防火石膏板包柱防火，0.4米*4面*3.18米高 | D4: 平方米 | E4: 167.90
A5: 3 | B5: 大厅玻璃隔断 | C5: 总长40米，高1.2米 | D5: 平方米 | E5: 48.00
A6: 4 | B6: 钢梁 | C6: HM244*175*7*11(Q235)，预埋件 | D6: 吨 | E6: 27.93
A7: 5 | B7: 钢檩条 | C7: 卷C250*75*20*2.5 | D7: 吨 | E7: 14.82
A8: 6 | B8: 钢屋面 | C8: 拉条φ12圆钢，压顶φ10以内 | D8: 吨 | E8: 0.88
A9: 7 | B9: 屋面板 | C9: 75厚聚氨酯夹心屋面板；山墙包角，UPVCφ110mm排水管222米 | D9: 平方米 | E9: 2,341.25
A10: 8 | B10: 钢梯 | C10: 2座，北面长11米，宽1.7米，南面长12.66米，宽1.8米，金属扶手、栏杆31米 | D10: 吨 | E10: 2.61
A11: 9 | B11: 钢墙架 | C11: 卷C160*70*20*3，钢架托板 | D11: 吨 | E11: 11.67
A12: 10 | B12: 内隔断墙 | C12: 轻钢龙骨墙体，12厚纸面石膏板；60厚聚氨酯夹心墙面板，墙角处为单层5mm厚彩钢板 | D12: 平方米 | E12: 2,229.15
A13: 11 | B13: 天棚吊顶 | C13: 不上人型T型烤漆龙骨矿棉板天棚，平面；龙骨材料种类、规格、中距：φ6.5套丝钢筋吊杆，中距1200mm；D38承载龙骨38mm×12mm×1.0mm，中距，含152套格栅荧光灯 | D13: 平方米 | E13: 2,226.96
A14: 12 | B14: 双开门 | C14: 木质双开，M1825，楼梯间为防火门，高2.5米 | D14: 扇 | E14: 5.00
A15: 13 | B15: 双开门 | C15: 玻璃双开门，高2米 | D15: 扇 | E15: 3.00
A16: 14 | B16: 木门 | C16: 单开，1.1米宽，高2米 | D16: 扇 | E16: 39.00
A17: 15 | B17: 50扇塑钢窗 | C17: 推拉窗，2.1米4扇；2米37扇；1.5米5扇，1.2米4扇，总长94.7米 | D17: 平方米 | E17: 132.47
A18: 16 | B18: 消火栓钢管 | C18: 镀锌钢管DN100；SN65，6套（含箱体、铝合金水枪、麻质水带）；单栓 | D18: 米 | E18: 151.6
A19: 17 | B19: 磷酸铵盐干粉灭火器 | C19: MF/ABC4-2，无需拆卸 | D19: 具 | E19: 12
A20: 18 | B20: 小便器 | C20: 陶瓷，无需拆卸，便池4个，蹲便器1个 | D20: 个 | E20: 5
A21: 19 | B21: 9个小雨篷 | C21: 彩钢板，北外立面 | D21: 平方米 | E21: 6.9
A22: 20 | B22: 西面彩钢棚 | C22: 高2.7米，不规则形，高阶阳台上 | D22: 平方米 | E22: 145.32
A23: 21 | B23: 东面彩钢棚 | C23: 长29.6米，宽3.7米，均高2.2米，最高2.63米，矩形 | D23: 平方米 | E23: 109.52
A24: 22 | B24: 砼壁水池 | C24: 底长4.27米+底宽3.54米，高1.86米，壁厚30cm，三角形西面女儿墙不计 | D24: 立方米 | E24: 4.36
A25: 23 | B25: 四周素砼地圈 | C25: 长184米，高0.35米，厚0.3米。不含西面高阶阳台段 | D25: 立方米 | E25: 19.32
A26: 24 | B26: 东南角彩钢棚 | C26: 均高2.2米，两个三角形 | D26: 平方米 | E26: 36.00
A27: 合 计 | D27: 项 | E27: =A26 -> 24.00

Sheet 专项费用
A1: 拆除专项费用清单
A2: 序号 | B2: 项目名称 | C2: 内容 | D2: 计量单位 | E2: 数量
A3: 1 | B3: 安全措施费 | C3: 施工围挡、禁止标志、安全指挥 | D3: 项 | E3: 1
A4: 2 | B4: 城区占道费 | C4: 其他占道，城管监督 | D4: 项 | E4: 1
A5: 3 | B5: 吊车费 | C5: 房屋平面面积大，需调整吊车点位。房屋周边多树木阻挡，无法直接吊装至运输车辆 | D5: 项 | E5: 1
A6: 4 | B6: 零星物件清场 | C6: 1、可移动，广告牌宣传栏、家具、厨房用具、工器具、遗留物件等；2、外墙空调架；3、全场清扫 | D6: 项 | E6: 1
A7: 5 | B7: 现场管理费 | C7: 1.5人 | D7: 项 | E7: 1
A8: 合 计 | D8: 项 | E8: =SUM(E3:E7) -> 5
